bitfinex/quotes_SOLUSD_20250718
["timestamp","ask_amount","ask_price","bid_price","bid_amount"]
[1752850945959,0.62,178.35,178.3,19.44105948]
[1752850946345,0.62,178.35,178.31,16.44105948]
[1752850946842,33.22574345,178.37,178.32,16.44105948]
[1752850947053,33.22574345,178.37,178.31,0.72]
[1752850947253,5.60695262,178.35,178.31,16.44105948]
[1752850947550,17.40468397,178.34,178.3,19.44105948]
[1752850947856,33.84574345,178.34,178.3,3.0]
[1752850948360,17.06105948,178.33,178.3,3.0]
[1752850949259,16.78468397,178.34,178.3,20.16105948]
[1752850949552,36.34703963,178.35,178.31,0.72]
[1752850949747,52.78809911,178.35,178.31,16.44105948]
[1752850950052,33.84574345,178.34,178.3,3.0]
[1752850950258,33.84574345,178.34,178.3,19.44105948]
[1752850950660,16.78468397,178.34,178.31,16.44105948]
[1752850950957,16.78468397,178.34,178.3,3.0]
[1752850951261,33.22574345,178.34,178.3,19.44105948]
[1752850951560,22.39219491,178.34,178.3,19.44105948]
[1752850952146,52.78810875,178.35,178.3,19.44105948]
[1752850952745,30.74,178.35,178.31,16.44105948]
[1752850952958,5.60531351,178.41,178.34,16.44105948]
[1752850953159,88.2,178.42,178.39,16.44105948]
[1752850953460,30.71,178.43,178.39,17.16105948]
[1752850953642,30.71,178.43,178.39,22.76675486]
[1752850953845,30.71,178.43,178.39,16.44105948]
[1752850954155,46.8266562,178.4,178.33,26.72]
[1752850954356,46.8266562,178.4,178.35,16.44105948]
[1752850954557,24.16021556,178.4,178.37,16.44105948]
[1752850955062,24.16021556,178.4,178.39,16.44105948]
[1752850955838,24.16021556,178.4,178.36,16.44105948]
[1752850956261,24.16021556,178.4,178.35,5.6069482]
[1752850956463,24.16021556,178.4,178.37,16.44105948]
[1752850956961,29.76565343,178.4,178.37,16.44105948]
[1752850957136,29.76565343,178.4,178.34,5.60716903]
[1752850957137,16.78468397,178.39,178.32,33.0431]
[1752850957341,16.44105948,178.38,178.33,16.44105948]
[1752850957543,39.45153058,178.39,178.34,16.44105948]
[1752850957749,23.0104711,178.39,178.35,16.44105948]
[1752850958148,143.04021556,178.4,178.36,16.44105948]
[1752850958444,143.04021556,178.4,178.38,16.44105948]
[1752850958445,54.84021556,178.4,178.38,16.44105948]
[1752850959253,54.84021556,178.4,178.37,17.16105948]
[1752850959765,54.84021556,178.4,178.38,16.44105948]
[1752850960068,24.16021556,178.4,178.39,17.16105948]
[1752850960640,0.03,178.4,178.39,25.19215948]
[1752850961464,0.03,178.43,178.4,26.0]
[1752850961647,0.03,178.43,178.42,22.04581231]
[1752850962049,0.03,178.43,178.42,22.76581231]
[1752850962248,0.1,178.46,178.42,22.76581231]
[1752850962249,0.1,178.46,178.42,37.33816966]
[1752850962474,0.1,178.46,178.45,16.44105948]
[1752850962967,0.1,178.46,178.45,17.16105948]
[1752850963147,0.1,178.46,178.45,47.84105948]
[1752850963547,0.1,178.46,178.45,17.16105948]
[1752850964147,0.1,178.46,178.45,22.76487007]
[1752850964560,0.1,178.46,178.45,23.32525112]
[1752850964869,0.1,178.46,178.45,22.76487007]
[1752850965066,0.1,178.46,178.45,48.76487007]
[1752850965457,0.03,178.47,178.46,16.44105948]
[1752850965660,0.03,178.47,178.46,17.12105948]
[1752850966260,0.03,178.47,178.46,22.72455606]
[1752850966652,0.03,178.47,178.46,23.28490571]
[1752850967052,0.03,178.51,178.49,26.0]
[1752850967270,0.03,178.51,178.5,16.44105948]
[1752850967467,0.03,178.51,178.5,17.12105948]
[1752850968359,0.03,178.51,178.5,22.72330037]
[1752850969480,0.03,178.51,178.5,6.28224089]
[1752850969687,0.03,178.51,178.5,22.72330037]
[1752850970086,0.03,178.53,178.52,26.0]
[1752850970271,0.03,178.53,178.52,73.10105948]
[1752850970455,0.03,178.53,178.52,73.78105948]
[1752850970957,0.03,178.53,178.49,31.34]
[1752850971164,0.03,178.53,178.5,26.0]
[1752850971375,0.03,178.53,178.52,11.59899146]
[1752850971676,0.03,178.53,178.52,17.20060472]
[1752850971879,0.03,178.53,178.52,17.88060472]
[1752850973167,0.03,178.53,178.52,6.28161326]
[1752850973375,0.03,178.53,178.52,17.88060472]
[1752850974670,1e-08,178.53,178.52,30.0397575]
[1752850974872,0.1,178.61,178.52,60.26831331]
[1752850975189,0.1,178.61,178.6,11.59899146]
[1752850975563,0.1,178.61,178.6,12.27899146]
[1752850975795,0.1,178.61,178.6,42.93899146]
[1752850976157,0.1,178.61,178.6,31.34]
[1752850976402,0.1,178.61,178.6,42.93899146]
[1752850976992,0.1,178.61,178.6,49.0453646]
[1752850977398,1e-08,178.61,178.6,51.18917501]
[1752850977705,1e-08,178.61,178.6,56.78827915]
[1752850977996,1e-08,178.61,178.6,81.52836874]
[1752850978201,1e-08,178.61,178.6,75.9292646]
[1752850978529,1e-08,178.61,178.6,18.3853646]
[1752850978685,0.03,178.62,178.6,36.65063961]
[1752850978886,0.03,178.7,178.64,26.0]
[1752850979079,0.03,178.7,178.69,17.7053646]
[1752850979591,0.03,178.7,178.69,25.56554866]
[1752850980309,0.03,178.7,178.69,42.35023263]
[1752850980692,0.03,178.7,178.69,7.86018406]
[1752850980925,0.03,178.7,178.69,56.20554866]
[1752850981131,0.03,178.7,178.69,50.6092646]
[1752850981413,0.03,178.7,178.69,26.0]
[1752850981584,0.03,178.7,178.69,43.7053646]
[1752850981783,0.03,178.7,178.69,81.18127706]
[1752850982236,0.03,178.7,178.69,63.47591246]
[1752850982508,0.03,178.7,178.69,81.18127706]
[1752850982810,0.03,178.7,178.69,75.0253646]
[1752850982982,0.03,178.7,178.69,74.3453646]
[1752850983184,0.03,178.7,178.66,0.68]
[1752850983522,0.03,178.7,178.66,17.7053646]
[1752850983727,0.68,178.7,178.66,17.7053646]
[1752850984219,0.68,178.7,178.64,19.3269646]
[1752850984220,17.7053646,178.69,178.64,19.3269646]
[1752850984394,0.65,178.69,178.65,17.7053646]
[1752850984707,0.03,178.7,178.66,17.7053646]
[1752850984901,0.03,178.7,178.64,50.0469646]
[1752850985103,17.7053646,178.68,178.64,1.6216]
[1752850985406,17.7053646,178.69,178.64,19.3269646]
[1752850985607,23.98143044,178.7,178.65,17.7053646]
[1752850986051,0.03,178.7,178.68,17.7053646]
[1752850986354,0.03,178.7,178.69,17.7053646]
[1752850986510,0.03,178.7,178.69,18.3853646]
[1752850986717,0.03,178.7,178.69,49.0653646]
[1752850987542,0.03,178.7,178.69,54.66164866]
[1752850987854,0.03,178.7,178.69,55.22127706]
[1752850989832,0.03,178.7,178.69,78.41046103]
[1752850990256,0.03,178.7,178.69,60.70509643]
[1752850990406,0.03,178.7,178.69,78.41046103]
[1752850991048,0.1,178.71,178.7,18.37138397]
[1752850991210,0.1,178.71,178.7,36.07674857]
[1752850991410,0.1,178.71,178.7,36.75674857]
[1752850991709,0.1,178.71,178.7,42.35271947]
[1752850991916,1e-08,178.71,178.7,42.35271947]
[1752850992111,1e-08,178.74,178.73,42.78468397]
[1752850992307,1e-08,178.74,178.73,109.37491633]
[1752850992507,1e-08,178.74,178.73,92.34955173]
[1752850992739,1e-08,178.74,178.73,110.05491633]
[1752850992935,1e-08,178.74,178.73,92.34955173]
[1752850993138,1e-08,178.74,178.73,91.79004857]
[1752850993531,0.03,178.78,178.77,31.59377971]
[1752850993737,0.03,178.78,178.77,79.91914431]
[1752850994236,0.03,178.78,178.75,17.7053646]
[1752850994454,0.03,178.78,178.75,30.62]
[1752850994774,0.03,178.78,178.75,17.7053646]
[1752850994960,0.03,178.78,178.77,17.7053646]
[1752850995272,0.03,178.78,178.76,30.62]
[1752850995561,0.03,178.78,178.76,23.29943153]
[1752850995771,0.03,178.78,178.76,17.7053646]
[1752850995935,0.03,178.78,178.77,17.7053646]
[1752850996322,0.03,178.78,178.77,48.3253646]
[1752850996759,0.03,178.78,178.77,49.0253646]
[1752850997128,0.03,178.78,178.77,48.3253646]
[1752850997740,0.03,178.78,178.77,53.91914431]
[1752850997929,0.03,178.78,178.77,17.7053646]
[1752850998127,0.71,178.78,178.75,30.6]
[1752850998426,0.71,178.78,178.75,17.7053646]
[1752850998638,0.03,178.78,178.74,62.19463482]
[1752850998957,0.68,178.77,178.74,26.0]
[1752850999163,0.03,178.78,178.71,17.16467339]
[1752850999164,11.56905968,178.75,178.71,17.16467339]
[1752850999456,0.68,178.76,178.72,11.56905968]
[1752851000036,17.16316845,178.76,178.71,42.16905968]
[1752851000236,0.68,178.75,178.71,30.6]
[1752851000463,12.24905968,178.75,178.71,30.6]
[1752851000963,11.56905968,178.73,178.67,5.59667668]
[1752851001166,11.56905968,178.72,178.67,47.76573636]
[1752851001346,11.56905968,178.71,178.67,30.6]
[1752851001547,0.68,178.72,178.68,11.56905968]
[1752851001742,6.27534467,178.72,178.68,11.56905968]
[1752851001938,0.68,178.72,178.68,11.56905968]
[1752851002445,11.56905968,178.73,178.68,11.56905968]
[1752851002662,11.56905968,178.71,178.67,30.6]
[1752851002954,12.24905968,178.71,178.67,30.6]
[1752851003260,0.68,178.71,178.67,42.16905968]
[1752851003465,12.24905968,178.71,178.65,7.3197]
[1752851003762,11.56905968,178.7,178.66,11.56905968]
[1752851003930,12.24905968,178.7,178.66,11.56905968]
[1752851004137,17.84503539,178.7,178.64,58.1999]
[1752851004438,11.56905968,178.69,178.62,0.73]
[1752851004643,11.56905968,178.71,178.66,11.56905968]
[1752851004852,12.24905968,178.71,178.66,11.56905968]
[1752851005050,11.56905968,178.68,178.64,11.56905968]
[1752851005342,12.24905968,178.68,178.64,11.56905968]
[1752851005650,12.24905968,178.68,178.62,62.22820284]
[1752851005651,0.68,178.67,178.62,11.59905968]
[1752851005848,5.59640691,178.69,178.63,11.56905968]
[1752851006046,0.68,178.68,178.63,11.56905968]
[1752851006254,17.8450551,178.7,178.65,11.56905968]
[1752851006446,17.1650551,178.7,178.65,12.26905968]
[1752851006646,17.16475336,178.71,178.66,11.56905968]
[1752851006950,16.78468397,178.72,178.68,11.56905968]
[1752851007164,16.78468397,178.74,178.69,11.56905968]
[1752851007366,11.56905968,178.74,178.7,11.56905968]
[1752851007564,12.24905968,178.74,178.67,0.7]
[1752851007943,0.68,178.74,178.7,11.56905968]
[1752851008148,56.13476727,178.75,178.73,11.56905968]
[1752851008149,24.54030036,178.75,178.73,11.56905968]
[1752851008473,30.13478389,178.75,178.69,32.1235]
[1752851008789,11.56905968,178.72,178.65,28.2844]
[1752851008974,11.56905968,178.71,178.66,11.56905968]
[1752851009138,0.68,178.7,178.66,11.56905968]
[1752851009341,11.56905968,178.72,178.68,11.56905968]
[1752851009559,0.68,178.73,178.69,11.56905968]
[1752851009752,0.68,178.73,178.67,0.7]
[1752851009753,11.56905968,178.73,178.68,11.56905968]
[1752851009950,0.68,178.72,178.65,33.18184593]
[1752851010168,0.68,178.72,178.68,11.56905968]
[1752851010768,17.16415018,178.73,178.68,11.56905968]
[1752851010944,36.19479191,178.74,178.65,33.18184593]
[1752851011144,30.6,178.74,178.71,11.56905968]
[1752851011365,30.6,178.74,178.72,11.56905968]
[1752851011573,24.54030036,178.75,178.73,11.56905968]
[1752851012564,24.54030036,178.75,178.7,5.59592684]
[1752851012744,24.54030036,178.75,178.66,30.6]
[1752851012745,12.24905968,178.74,178.66,31.3]
[1752851013075,12.24905968,178.74,178.65,27.5844]
[1752851013076,11.56905968,178.71,178.65,33.18168693]
[1752851013255,11.56905968,178.7,178.66,11.56905968]
[1752851013571,11.56905968,178.69,178.65,1.5844]
[1752851013762,12.24905968,178.69,178.64,11.56905968]
[1752851014069,17.84545832,178.69,178.63,6.29799217]
[1752851014294,17.84545832,178.69,178.64,11.56905968]
[1752851014585,12.24905968,178.68,178.63,11.56905968]
[1752851014954,0.68,178.68,178.64,17.7027407]
[1752851015852,17.7027407,178.66,178.62,0.03]
[1752851016175,17.7027407,178.65,178.62,0.03]
[1752851016383,0.68,178.65,178.62,0.03]
[1752851016551,23.30021877,178.66,178.62,0.03]
[1752851016756,23.98021877,178.66,178.62,0.03]
[1752851017087,18.3827407,178.65,178.62,0.03]
[1752851017474,0.68,178.65,178.62,0.03]
[1752851017666,23.299748,178.67,178.62,17.7327407]
[1752851018055,54.57939501,178.68,178.63,17.7027407]
[1752851018249,17.7027407,178.67,178.63,17.7027407]
[1752851018450,17.7027407,178.65,178.62,0.03]
[1752851018965,17.46468397,178.67,178.62,0.03]
[1752851019154,17.7027407,178.65,178.62,0.03]
[1752851019578,31.28,178.66,178.62,0.03]
[1752851019579,48.9827407,178.66,178.62,0.03]
[1752851020194,54.58025063,178.66,178.62,0.03]
[1752851020914,36.87750993,178.66,178.62,0.03]
[1752851021080,30.6,178.66,178.63,17.7027407]
[1752851021589,30.6,178.66,178.64,17.7027407]
[1752851021787,30.6,178.66,178.63,18.4027407]
[1752851022009,17.7027407,178.66,178.62,0.03]
[1752851022191,40.08557919,178.64,178.62,0.03]
[1752851022607,40.76557919,178.64,178.62,0.03]
[1752851022913,17.7027407,178.64,178.62,0.03]
[1752851023209,18.3827407,178.64,178.62,0.03]
[1752851023512,18.3827407,178.63,178.62,0.03]
[1752851023889,34.48742467,178.63,178.62,0.03]
[1752851024091,35.16742467,178.63,178.62,0.03]
[1752851024287,40.76558847,178.63,178.62,0.03]
[1752851026116,58.46832917,178.63,178.62,1e-08]
[1752851026418,40.76558847,178.63,178.62,1e-08]
[1752851027012,71.38558847,178.63,178.62,1e-08]
[1752851027216,89.08832917,178.63,178.62,1e-08]
[1752851027804,113.08373867,178.63,178.58,0.03]
[1752851028006,60.48742467,178.59,178.58,1e-08]
[1752851028317,96.70684233,178.59,178.58,1e-08]
[1752851028522,97.37684233,178.59,178.58,1e-08]
[1752851030437,79.67410163,178.59,178.58,1e-08]
[1752851030729,97.37684233,178.59,178.58,1e-08]
[1752851031831,79.67410163,178.59,178.58,1e-08]
[1752851032038,40.08684233,178.59,178.58,1e-08]
[1752851032340,30.62,178.59,178.58,1e-08]
[1752851033037,30.62,178.61,178.58,0.71000001]
[1752851033336,30.62,178.61,178.58,1e-08]
[1752851033523,34.48742467,178.6,178.58,1e-08]
[1752851033717,65.10742467,178.59,178.58,1e-08]
[1752851034119,30.62,178.59,178.58,1e-08]
[1752851034322,47.40468397,178.59,178.58,1e-08]
[1752851034536,53.00410163,178.59,178.58,1e-08]
[1752851034926,65.27022902,178.59,178.58,1e-08]
[1752851038060,54.38081136,178.55,178.54,1e-08]
[1752851038238,85.00081136,178.55,178.54,1e-08]
[1752851038428,91.27148344,178.55,178.54,1e-08]
[1752851039655,90.60148344,178.55,178.54,1e-08]
[1752851040450,5.60040772,178.56,178.54,1e-08]
[1752851040632,30.62,178.56,178.54,12.3061274]
[1752851040834,88.2,178.58,178.55,0.71]
[1752851041042,88.2,178.58,178.54,11.5961274]
[1752851041043,36.22006505,178.57,178.54,1e-08]
[1752851041660,30.62,178.59,178.56,11.59612739]
[1752851041854,30.62,178.59,178.54,1e-08]
[1752851041855,30.62,178.6,178.57,11.59612739]
[1752851042053,30.62,178.6,178.57,0.71]
[1752851042238,11.59612739,178.58,178.54,1e-08]
[1752851042451,64.60110606,178.57,178.54,1e-08]
[1752851042629,30.62,178.56,178.55,0.71]
[1752851042835,30.62,178.56,178.54,1e-08]
[1752851043857,30.62,178.57,178.55,0.71]
[1752851044171,30.62,178.59,178.56,12.30612739]
[1752851044347,26.0,178.6,178.57,11.59612739]
[1752851044539,31.59935885,178.6,178.57,11.59612739]
[1752851044846,28.38081136,178.59,178.55,0.71]
[1752851045062,47.40468397,178.59,178.55,12.30612739]
[1752851045434,47.40468397,178.59,178.54,1e-08]
[1752851045638,11.59612739,178.55,178.54,1e-08]
[1752851045841,59.00081136,178.55,178.54,1e-08]
[1752851046039,47.40468397,178.55,178.54,1e-08]
[1752851046241,16.78468397,178.55,178.54,1e-08]
[1752851046444,30.62,178.55,178.54,1e-08]
[1752851046656,11.59612739,178.57,178.54,1e-08]
[1752851046657,30.62,178.56,178.54,0.71000001]
[1752851046838,11.59612739,178.56,178.54,0.71000001]
[1752851047057,28.38081136,178.55,178.54,1e-08]
[1752851047539,29.05081136,178.55,178.54,1e-08]
[1752851048770,34.65148344,178.55,178.54,1e-08]
[1752851048975,16.78468397,178.51,178.5,0.03]
[1752851049152,16.78468397,178.47,178.46,0.03]
[1752851049466,58.98081136,178.47,178.46,0.03]
[1752851049640,58.98081136,178.47,178.44,0.2]
[1752851049843,37.59612739,178.45,178.44,0.2]
[1752851050057,85.00081136,178.45,178.44,1e-08]
[1752851050259,85.67081136,178.45,178.44,1e-08]
[1752851050474,88.41630175,178.45,178.44,1e-08]
[1752851050691,16.78468397,178.4,178.35,1.5023]
[1752851050983,11.59612739,178.36,178.35,1.5023]
[1752851051360,16.78468397,178.35,178.32,0.71]
[1752851051668,11.59612739,178.33,178.3,4.534]
[1752851051975,30.62,178.33,178.3,4.534]
[1752851052270,11.59612739,178.31,178.3,4.534]
[1752851052849,30.62,178.33,178.3,4.534]
[1752851052850,11.59612739,178.32,178.3,5.244]
[1752851053057,16.4082468,178.31,178.3,4.534]
[1752851053263,16.4082468,178.32,178.3,4.534]
[1752851053701,47.0282468,178.33,178.3,5.244]
[1752851053979,30.62,178.35,178.32,16.4082468]
[1752851054160,30.62,178.36,178.32,16.4082468]
[1752851054358,30.62,178.36,178.33,0.71]
[1752851054555,33.19293077,178.38,178.34,0.71]
[1752851054756,30.62,178.37,178.34,0.71]
[1752851054978,16.4082468,178.36,178.32,0.71]
[1752851055178,30.62,178.37,178.33,0.71]
[1752851055379,30.62,178.37,178.34,0.71]
[1752851055756,16.4082468,178.36,178.3,10.14248101]
[1752851055951,16.4082468,178.34,178.31,0.71]
[1752851056259,16.4082468,178.33,178.31,0.71]
[1752851056448,30.62,178.35,178.31,0.71]
[1752851056655,30.62,178.36,178.32,22.72605977]
[1752851056877,30.62,178.36,178.33,0.71]
[1752851057075,30.62,178.36,178.34,0.71]
[1752851057254,47.0282468,178.36,178.31,22.72639135]
[1752851057475,47.0282468,178.36,178.32,0.71]
[1752851057663,30.62,178.36,178.33,0.71]
[1752851057862,30.62,178.36,178.34,0.71]
[1752851058684,16.4082468,178.35,178.31,0.71]
[1752851058898,16.4082468,178.34,178.31,0.71]
[1752851059081,16.4082468,178.33,178.3,4.534]
[1752851059489,30.62,178.34,178.31,0.71]
[1752851059683,47.0282468,178.34,178.31,0.71]
[1752851060004,16.78468397,178.31,178.3,4.534]
[1752851060297,47.40468397,178.31,178.3,3.0]
[1752851060478,47.0282468,178.32,178.3,3.71]
[1752851060663,30.62,178.32,178.3,3.0]
[1752851060863,30.62,178.33,178.31,0.71]
[1752851061591,16.4082468,178.32,178.3,3.0]
[1752851061769,63.81293077,178.31,178.3,3.0]
[1752851061964,47.40468397,178.31,178.3,3.0]
[1752851062166,48.08468397,178.31,178.3,3.0]
[1752851062388,64.49293077,178.31,178.3,3.0]
[1752851062796,70.10114119,178.31,178.3,3.0]
[1752851063167,47.40468397,178.31,178.3,3.0]
[1752851063376,63.81293077,178.31,178.3,3.0]
[1752851063592,69.42114119,178.31,178.3,3.0]
[1752851063977,39.48114119,178.31,178.3,3.0]
[1752851064285,70.12114119,178.31,178.3,3.0]
[1752851064508,39.48114119,178.31,178.3,3.0]
[1752851064795,16.78468397,178.31,178.3,3.0]
[1752851065001,30.62,178.32,178.3,20.1182468]
[1752851065201,30.62,178.33,178.31,17.1182468]
[1752851065376,30.62,178.33,178.3,3.0]
[1752851065377,30.62,178.33,178.32,17.1182468]
[1752851065581,16.78468397,178.36,178.32,17.1182468]
[1752851065782,47.40468397,178.36,178.33,0.71]
[1752851066378,63.81293077,178.36,178.3,3.71]
[1752851066575,63.81293077,178.36,178.32,16.4082468]
[1752851066808,16.78468397,178.32,178.3,3.0]
[1752851066988,63.81293077,178.31,178.3,3.0]
[1752851067303,47.40468397,178.31,178.3,3.0]
[1752851067613,30.62,178.33,178.3,20.1182468]
[1752851067907,33.19293077,178.36,178.31,0.71]
[1752851068085,30.62,178.35,178.31,0.71]
[1752851068287,30.62,178.35,178.32,17.1182468]
[1752851068505,5.60538116,178.4,178.33,17.1182468]
[1752851068682,16.78468397,178.39,178.35,18.0390468]
[1752851068992,24.10453899,178.41,178.38,16.4082468]
[1752851069309,24.10453899,178.41,178.4,16.4082468]
[1752851069480,24.10453899,178.41,178.4,17.1182468]
[1752851070505,30.62,178.44,178.4,17.1182468]
[1752851070804,30.62,178.44,178.37,19.62208788]
[1752851070805,30.62,178.46,178.43,16.4082468]
[1752851071020,30.62,178.47,178.44,0.71]
[1752851071380,30.62,178.47,178.43,16.4082468]
[1752851072105,16.4082468,178.45,178.4,16.4082468]
[1752851072303,30.62,178.44,178.41,16.4082468]
[1752851072479,30.62,178.44,178.41,17.1182468]
[1752851072682,30.62,178.44,178.42,0.71]
[1752851072884,30.62,178.44,178.42,22.72294037]
[1752851073079,16.78468397,178.47,178.43,17.1182468]
[1752851073397,30.62,178.48,178.46,16.4082468]
[1752851073589,30.62,178.48,178.46,0.71]
[1752851073984,30.62,178.48,178.46,17.1182468]
[1752851074184,30.62,178.48,178.43,6.852]
[1752851074384,30.62,178.48,178.45,16.4082468]
[1752851074597,16.78468397,178.5,178.47,16.4082468]
[1752851074804,47.40468397,178.5,178.47,17.1182468]
[1752851075117,47.40468397,178.5,178.48,17.1182468]
[1752851075118,30.62,178.5,178.48,17.1182468]
[1752851075304,23.86122411,178.51,178.49,17.1182468]
[1752851075606,23.86122411,178.51,178.49,0.71]
[1752851075791,23.86122411,178.51,178.49,17.1182468]
[1752851075992,23.86122411,178.51,178.49,0.71]
[1752851076196,23.86122411,178.51,178.48,16.4082468]
[1752851076395,47.40468397,178.5,178.46,1.6361]
[1752851076727,16.4082468,178.47,178.43,6.142]
[1752851076891,16.4082468,178.46,178.43,6.142]
[1752851077214,30.62,178.47,178.43,6.142]
[1752851077215,30.62,178.47,178.44,0.71]
[1752851077520,52.6315252,178.47,178.44,0.71]
[1752851077696,33.19293077,178.46,178.43,6.142]
[1752851077880,16.4082468,178.45,178.41,2.215]
[1752851078087,30.62,178.45,178.42,0.71]
[1752851078284,30.62,178.45,178.43,0.71]
[1752851078615,33.19293077,178.46,178.41,17.9132468]
[1752851078781,16.4082468,178.44,178.41,1.505]
[1752851078984,16.78468397,178.44,178.42,0.71]
[1752851079282,38.79705934,178.44,178.41,1.505]
[1752851079488,30.6,178.43,178.39,6.0892]
[1752851080022,16.4082468,178.42,178.39,6.0892]
[1752851080696,16.4082468,178.41,178.37,17.1182468]
[1752851080901,30.6,178.41,178.37,17.1182468]
[1752851081132,30.6,178.41,178.38,17.1182468]
[1752851081427,52.61289326,178.43,178.39,0.71]
[1752851081601,16.4082468,178.42,178.39,0.71]
[1752851081801,33.19293077,178.42,178.41,0.06]
[1752851082718,33.87293077,178.42,178.41,0.06]
[1752851083024,39.4776836,178.42,178.41,0.06]
[1752851083230,23.0694368,178.42,178.41,0.06]
[1752851083408,39.4776836,178.42,178.41,0.06]
[1752851084913,34.69058483,178.42,178.41,0.06]
[1752851085123,65.29058483,178.42,178.41,0.06]
[1752851085933,53.6694368,178.42,178.41,0.06]
[1752851086112,65.29058483,178.42,178.41,0.06]
[1752851087106,64.61058483,178.42,178.41,0.06]
[1752851087304,64.11058483,178.42,178.41,0.06]
[1752851087500,64.79058483,178.42,178.41,0.06]
[1752851087732,88.2,178.47,178.41,0.74]
[1752851087934,42.22114803,178.46,178.41,12.36114803]
[1752851088237,42.22114803,178.46,178.42,0.68]
[1752851088406,30.6,178.46,178.43,11.62114803]
[1752851088730,0.03,178.48,178.44,12.30114803]
[1752851088938,11.65114803,178.48,178.45,0.68]
[1752851089255,5.63293284,178.48,178.45,0.68]
[1752851089424,0.03,178.48,178.46,0.68]
[1752851089825,0.03,178.48,178.45,13.21314803]
[1752851090121,0.03,178.48,178.47,12.30114803]
[1752851091126,0.03,178.48,178.47,17.90433063]
[1752851091436,0.03,178.51,178.47,17.90433063]
[1752851091641,0.03,178.51,178.5,11.62114803]
[1752851092209,0.03,178.51,178.5,12.30114803]
[1752851092710,0.03,178.51,178.45,1.592]
[1752851092924,0.03,178.51,178.48,16.3695577]
[1752851093119,0.03,178.51,178.49,16.3695577]
[1752851093414,0.03,178.51,178.49,0.68]
[1752851093616,33.18424167,178.51,178.46,16.3695577]
[1752851093819,33.18424167,178.51,178.47,0.68]
[1752851094031,16.3695577,178.5,178.45,17.9615577]
[1752851094208,16.3695577,178.5,178.46,0.68]
[1752851094843,38.78640242,178.51,178.47,0.68]
[1752851095040,16.3695577,178.5,178.47,0.68]
[1752851095248,16.3695577,178.5,178.45,17.9615577]
[1752851095525,22.41684472,178.51,178.46,0.68]
[1752851095746,16.3695577,178.5,178.46,0.68]
[1752851096537,16.3695577,178.48,178.45,1.592]
[1752851096855,21.97255247,178.48,178.45,1.592]
[1752851097058,33.15424167,178.46,178.41,6.5131]
[1752851097227,16.3695577,178.44,178.41,6.5131]
[1752851097624,16.3695577,178.45,178.41,6.5131]
[1752851097847,16.78468397,178.47,178.43,16.3695577]
[1752851098158,16.3695577,178.46,178.43,0.68]
[1752851098829,21.97327047,178.46,178.43,0.68]
[1752851099024,16.3695577,178.45,178.41,6.5131]
[1752851099327,16.3695577,178.43,178.41,0.06]
[1752851099652,16.3695577,178.43,178.41,0.74]
[1752851099861,33.15424167,178.44,178.41,0.74]
[1752851100162,16.3695577,178.43,178.41,0.06]
[1752851100330,16.3695577,178.42,178.41,0.06]
[1752851100531,16.78468397,178.44,178.41,0.74]
[1752851100756,16.3695577,178.42,178.41,0.06]
[1752851101044,21.97431053,178.42,178.41,0.06]
[1752851101446,38.7589945,178.42,178.41,0.06]
[1752851102565,110.17274742,178.47,178.41,17.1095577]
[1752851102881,5.60381059,178.45,178.42,0.68]
[1752851103080,21.97336829,178.45,178.41,0.06]
[1752851103373,16.3695577,178.42,178.41,0.06]
[1752851103570,33.15424167,178.42,178.41,0.06]
[1752851103742,26.0,178.39,178.37,3.0]
[1752851103940,33.15424167,178.38,178.37,3.0]
[1752851104542,16.3695577,178.38,178.37,3.0]
[1752851104738,56.58,178.39,178.37,3.0]
[1752851104739,42.3695577,178.39,178.37,3.0]